[Event "Magistral Ajedrez 2019"]
[Site "Zaragoza"]
[Date "2019.07.20"]
[Round "8.2"]
[White "Kovacevic, Slobodan"]
[Black "Shome Shiv"]
[Result "1-0"]
[ECO "D00"]
[WhiteElo "2257"]
[BlackElo "2298"]
[Annotator "ChessBase"]
[PlyCount "228"]
[EventDate "2019.07.15"]
[EventType "swiss"]
[EventCountry "ESP"]
[SourceTitle "playchess.com"]
[Source "ChessBase"]
[SourceQuality "1"]
[TimeControl "5400+30"]

1. d4 {[%emt 0:02:40]} d5 {[%emt 0:00:00]} 2. Bf4 {[%emt 0:00:27]} Bf5 {[%emt 0:00:00]} 3. e3 {[%emt 0:01:11]} e6 {[%emt 0:00:16]} 4. c4 {[%emt 0:00:07]} Bxb1 {[%emt 0:00:23]} 5. Qxb1 {[%emt 0:00:36]} Bb4+ {[%emt 0:00:09]} 6. Kd1 {[%emt 0:00:06]} Bd6 {[%emt 0:00:12]} 7. Bg3 {[%emt 0:00:31]} Nf6 {[%emt 0:01:11]} 8. Nf3 {[%emt 0:01:35]} Ne4 {[%emt 0:02:30]} 9. Qc2 {[%emt 0:00:02]} Bxg3 {[%emt 0:06:51]} 10. hxg3 {[%emt 0:01:04]} Nd7 {[%emt 0:00:09]} 11. Bd3 {[%emt 0:01:47]} Ndf6 {[%emt 0:00:13]} 12. Ke2 {[%emt 0:01:08]} c6 {[%emt 0:01:13]} 13. c5 {[%emt 0:13:05]} Qc7 {[%emt 0:06:37]} 14. Ne5 {[%emt 0:05:22]} h6 {[%emt 0:02:15]} 15. Rh3 {[%emt 0:04:09]} Ng5 {[%emt 0:01:56]} 16. Rh4 {[%emt 0:01:05]} Nge4 {[%emt 0:13:44]} 17. g4 {[%emt 0:04:28]} Ke7 {[%emt 0:05:58]} 18. Rc1 {[%emt 0:05:03]} Rhc8 {[%emt 0:03:05]} 19. a3 {[%emt 0:06:05]} Qa5 {[%emt 0:08:56]} 20. f3 {[%emt 0:07:10]} Ng5 {[%emt 0:00:04]} 21. Kf1 {[%emt 0:02:37]} Rab8 {[%emt 0:04:13]} 22. Ra1 {[%emt 0:07:46]} Qc7 {[%emt 0:08:59]} 23. Kg1 {[%emt 0:02:37]} a6 {[%emt 0:08:06]} 24. Rc1 {[%emt 0:03:55]} Qa5 {[%emt 0:01:34]} 25. Kf2 {[%emt 0:15:31]} Rd8 {[%emt 0:09:01]} 26. Rf1 {[%emt 0:04:40]} Ke8 {[%emt 0:01:15]} 27. Kg1 {[%emt 0:01:23]} Ke7 {[%emt 0:01:13]} 28. Rc1 {[%emt 0:00:48]} Rdc8 {[%emt 0:01:13]} 29. Rb1 {[%emt 0:02:17]} Rd8 {[%emt 0:00:59]} 30. Rh1 {[%emt 0:00:15]} Rh8 {[%emt 0:01:42]} 31. Kf2 {[%emt 0:00:11]} Rhd8 {[%emt 0:03:29]} 32. Ra1 {[%emt 0:00:44]} Qc7 {[%emt 0:00:19]} 33. b4 {[%emt 0:00:10]} Ra8 {[%emt 0:02:10]} 34. a4 {[%emt 0:00:09]} Nd7 {[%emt 0:03:19]} 35. Nxd7 {[%emt 0:00:27]} Qxd7 {[%emt 0:00:04]} 36. f4 {[%emt 0:00:11]} Ne4+ {[%emt 0:00:04]} 37. Bxe4 {[%emt 0:00:06]} dxe4 {[%emt 0:00:03]} 38. Qxe4 {[%emt 0:00:16]} Qd5 {[%emt 0:00:12]} 39. Qc2 {[%emt 0:00:59]} f5 {[%emt 0:02:18]} 40. Rh5 {[%emt 0:00:20]} Rf8 {[%emt 0:00:07]} 41. g3 {[%emt 0:01:10]} g6 {[%emt 0:00:45]} 42. Rxh6 {[%emt 0:00:15]} Rh8 {[%emt 0:00:05]} 43. g5 {[%emt 0:02:12]} Rxh6 {[%emt 0:00:20]} 44. gxh6 {[%emt 0:00:01]} Rh8 {[%emt 0:00:02]} 45. Qa2 {[%emt 0:00:15]} Rxh6 {[%emt 0:01:23]} 46. Qxd5 exd5 {[%emt 0:00:01]} 47. Kg2 {[%emt 0:00:27]} Rh8 {[%emt 0:00:42]} 48. b5 {[%emt 0:00:05]} Kd7 {[%emt 0:01:21]} 49. bxc6+ {[%emt 0:00:46]} bxc6 {[%emt 0:00:09]} 50. Rb1 {[%emt 0:00:05]} Kc7 {[%emt 0:00:25]} 51. Rb6 {[%emt 0:00:26]} a5 {[%emt 0:00:14]} 52. Rb1 {[%emt 0:00:27]} Re8 {[%emt 0:01:50]} 53. Re1 {[%emt 0:00:17]} Kd7 {[%emt 0:00:59]} 54. Kf3 {[%emt 0:00:15]} Rh8 {[%emt 0:00:15]} 55. Kg2 {[%emt 0:00:22]} Re8 {[%emt 0:00:03]} 56. g4 {[%emt 0:00:42]} Rh8 {[%emt 0:01:01]} 57. Kg3 {[%emt 0:00:18]} Rh7 {[%emt 0:01:23]} 58. Rb1 {[%emt 0:00:47]} Kc7 {[%emt 0:00:41]} 59. Rb2 {[%emt 0:00:34]} Re7 {[%emt 0:00:50]} 60. Re2 {[%emt 0:00:09]} Rh7 {[%emt 0:00:51]} 61. Rg2 {[%emt 0:00:09]} Kd7 {[%emt 0:00:31]} 62. gxf5 {[%emt 0:00:59]} gxf5 {[%emt 0:00:04]} 63. Kf3 {[%emt 0:00:33]} Rh3+ {[%emt 0:00:49]} 64. Ke2 {[%emt 0:00:09]} Rh7 {[%emt 0:00:03]} 65. Kd3 {[%emt 0:00:26]} Rf7 {[%emt 0:00:55]} 66. Rg8 {[%emt 0:00:40]} Kc7 {[%emt 0:00:08]} 67. Ke2 {[%emt 0:00:40]} Rh7 {[%emt 0:00:00]} 68. Rg5 {[%emt 0:00:11]} Rf7 {[%emt 0:00:04]} 69. Kf3 {[%emt 0:00:24]} Kd7 {[%emt 0:00:13]} 70. Rg6 {[%emt 0:00:43]} Kc7 {[%emt 0:00:28]} 71. Rg8 {[%emt 0:00:13]} Kb7 {[%emt 0:00:29]} 72. Re8 {[%emt 0:00:23]} Kc7 {[%emt 0:00:04]} 73. Kg3 {[%emt 0:00:22]} Rh7 {[%emt 0:00:48]} 74. Rf8 {[%emt 0:00:18]} Rh5 {[%emt 0:00:04]} 75. Rf7+ {[%emt 0:00:34]} Kc8 {[%emt 0:00:10]} 76. Rg7 {[%emt 0:01:13]} Rh6 {[%emt 0:00:15]} 77. Kg2 {[%emt 0:01:01]} Re6 {[%emt 0:00:52]} 78. Kf2 {[%emt 0:01:18]} Rh6 {[%emt 0:00:23]} 79. Kf3 {[%emt 0:00:44]} Rh3+ {[%emt 0:00:44]} 80. Rg3 {[%emt 0:01:07]} Rh6 {[%emt 0:00:24]} 81. Kg2 {[%emt 0:00:21]} Re6 {[%emt 0:00:47]} 82. Rh3 {[%emt 0:00:09]} Rf6 {[%emt 0:01:26]} 83. Rh7 {[%emt 0:00:35]} Rg6+ {[%emt 0:00:24]} 84. Kf3 {[%emt 0:01:04]} Rf6 {[%emt 0:01:02]} 85. Kg3 {[%emt 0:03:49]} Re6 {[%emt 0:00:13]} 86. Kh4 {[%emt 0:00:24]} Rxe3 {[%emt 0:00:04]} 87. Kg5 {[%emt 0:00:02]} Re4 {[%emt 0:00:05]} 88. Kxf5 {[%emt 0:00:02]} Rxd4 {[%emt 0:00:05]} 89. Ke5 {[%emt 0:00:12]} Re4+ {[%emt 0:01:56]} 90. Kd6 {[%emt 0:00:01]} Rxf4 {[%emt 0:00:01]} 91. Kxc6 {[%emt 0:00:12]} Rf6+ {[%emt 0:00:05]} 92. Kxd5 {[%emt 0:00:05]} Kb8 {[%emt 0:01:34]} 93. Kc4 {[%emt 0:00:07]} Rf4+ {[%emt 0:00:32]} 94. Kb5 {[%emt 0:00:04]} Rb4+ {[%emt 0:00:04]} 95. Kxa5 {[%emt 0:02:01]} Rb1 {[%emt 0:00:04]} 96. Ka6 {[%emt 0:00:44]} Kc8 {[%emt 0:00:07]} 97. Ka5 {[%emt 0:01:39]} Kb8 {[%emt 0:00:37]} 98. Rh4 {[%emt 0:00:22]} Kc7 {[%emt 0:00:13]} 99. Rb4 {[%emt 0:00:04]} Rc1 {[%emt 0:00:44]} 100. Kb5 {[%emt 0:00:15]} Rc2 {[%emt 0:00:23]} 101. a5 {[%emt 0:00:08]} Kb7 {[%emt 0:00:13]} 102. a6+ {[%emt 0:00:13]} Ka7 {[%emt 0:00:02]} 103. Re4 {[%emt 0:00:30]} Rb2+ {[%emt 0:00:11]} 104. Kc6 {[%emt 0:00:11]} Rc2 {[%emt 0:00:03]} 105. Re8 {[%emt 0:00:29]} Rc1 {[%emt 0:00:22]} 106. Re5 {[%emt 0:02:02]} Kxa6 {[%emt 0:01:12]} 107. Kc7 {[%emt 0:00:02]} Rh1 {[%emt 0:00:32]} 108. Re7 {[%emt 0:00:31]} Rh8 {[%emt 0:01:53]} 109. c6 {[%emt 0:00:14]} Ka7 {[%emt 0:00:04]} 110. Rd7 {[%emt 0:00:31]} Rf8 {[%emt 0:00:58]} 111. Rd6 {[%emt 0:01:14]} Rf7+ {[%emt 0:00:44]} 112. Kc8 {[%emt 0:00:11]} Rf8+ {[%emt 0:01:22]} 113. Rd8 {[%emt 0:00:19]} Rf1 {[%emt 0:00:22]} 114. c7 {[%emt 0:00:42]} Rc1 {[%emt 0:00:02]} 1-0

[Event "Magistral Ajedrez 2019"]
[Site "Zaragoza"]
[Date "2019.07.20"]
[Round "8.3"]
[White "Sos Andreu, Eric"]
[Black "Chueca Forcen, Alberto"]
[Result "1-0"]
[ECO "A25"]
[WhiteElo "2343"]
[BlackElo "2283"]
[Annotator "NA"]
[PlyCount "167"]
[EventDate "2019.07.15"]
[EventType "swiss"]
[EventCountry "ESP"]
[SourceTitle "playchess.com"]
[Source "ChessBase"]
[SourceQuality "1"]
[TimeControl "5400+30"]

1. c4 {[%emt 0:00:00]} e5 {[%emt 0:00:00]} 2. g3 {[%emt 0:00:00]} Nc6 {[%emt 0:00:00]} 3. Bg2 {[%emt 0:00:00]} g6 {[%emt 0:00:00]} 4. Nc3 {[%emt 0:00:22]} Bg7 {[%emt 0:00:00]} 5. e3 {[%emt 0:00:23]} d6 {[%emt 0:00:09]} 6. Nge2 {[%emt 0:01:33]} f5 {[%emt 0:02:27]} 7. O-O {[%emt 0:02:11]} Nf6 {[%emt 0:00:30]} 8. d3 {[%emt 0:00:17]} O-O {[%emt 0:00:39]} 9. b3 {[%emt 0:00:34]} Ne7 {[%emt 0:06:18]} 10. Ba3 {[%emt 0:07:26]} c6 {[%emt 0:02:53]} 11. Rc1 {[%emt 0:02:27]} Qc7 {[%emt 0:02:51]} 12. Qd2 {[%emt 0:04:04]} Be6 {[%emt 0:08:45]} 13. e4 {[%emt 0:20:13]} Rad8 {[%emt 0:29:06]} 14. Nd5 {[%emt 0:05:45]} Qd7 {[%emt 0:08:46]} 15. Nxf6+ {[%emt 0:06:13]} Bxf6 {[%emt 0:01:16]} 16. d4 {[%emt 0:03:14]} fxe4 {[%emt 0:03:28]} 17. dxe5 {[%emt 0:02:51]} Bxe5 {[%emt 0:00:17]} 18. Bxe4 {[%emt 0:00:36]} Bh3 {[%emt 0:02:07]} 19. Bg2 {[%emt 0:00:37]} Bxg2 {[%emt 0:01:41]} 20. Kxg2 {[%emt 0:00:10]} Rf7 {[%emt 0:03:22]} 21. Rcd1 {[%emt 0:01:39]} d5 {[%emt 0:04:56]} 22. Qe3 {[%emt 0:06:09]} Bg7 {[%emt 0:03:10]} 23. Qxa7 {[%emt 0:05:42]} d4 {[%emt 0:02:29]} 24. Bxe7 {[%emt 0:03:39]} Qxe7 {[%emt 0:02:52]} 25. Nc1 {[%emt 0:06:12]} Qe4+ {[%emt 0:01:12]} 26. Kg1 {[%emt 0:00:55]} h5 {[%emt 0:02:45]} 27. Qa5 {[%emt 0:00:51]} Rdf8 {[%emt 0:00:11]} 28. h4 {[%emt 0:03:09]} Bh6 {[%emt 0:03:34]} 29. Nd3 {[%emt 0:02:59]} Rf3 {[%emt 0:02:05]} 30. Qe5 {[%emt 0:01:32]} Qg4 {[%emt 0:01:33]} 31. Kg2 {[%emt 0:03:09]} Bg7 {[%emt 0:02:21]} 32. Qe1 {[%emt 0:02:21]} Qf5 {[%emt 0:02:19]} 33. Qe2 {[%emt 0:00:58]} Qg4 {[%emt 0:00:31]} 34. Rfe1 {[%emt 0:00:43]} Kh7 {[%emt 0:01:20]} 35. Qe4 {[%emt 0:02:44]} Qxe4 {[%emt 0:00:47]} 36. Rxe4 {[%emt 0:00:04]} R3f5 {[%emt 0:00:15]} 37. Re7 {[%emt 0:00:40]} b5 {[%emt 0:00:12]} 38. cxb5 {[%emt 0:00:22]} cxb5 {[%emt 0:00:02]} 39. Nf4 {[%emt 0:01:37]} R5f7 {[%emt 0:00:03]} 40. Re6 {[%emt 0:01:53]} Ra8 {[%emt 0:00:43]} 41. Re2 {[%emt 0:01:06]} Rfa7 {[%emt 0:00:35]} 42. Rdd2 {[%emt 0:00:11]} Bf6 {[%emt 0:01:40]} 43. Ne6 {[%emt 0:00:49]} Rd7 {[%emt 0:00:46]} 44. Rd3 {[%emt 0:00:13]} Rda7 {[%emt 0:00:19]} 45. Rdd2 {[%emt 0:00:53]} Rd7 {[%emt 0:00:01]} 46. Nc5 {[%emt 0:00:41]} Rd5 {[%emt 0:00:44]} 47. Nd3 {[%emt 0:00:11]} Kg7 {[%emt 0:00:14]} 48. Rc2 {[%emt 0:00:13]} Rd7 {[%emt 0:00:17]} 49. Rc6 {[%emt 0:00:10]} Re7 {[%emt 0:00:37]} 50. Rxe7+ {[%emt 0:01:21]} Bxe7 51. Rc2 {[%emt 0:00:12]} Kf6 {[%emt 0:00:39]} 52. Kf3 {[%emt 0:00:10]} Kf5 {[%emt 0:00:07]} 53. Rc7 {[%emt 0:01:36]} Ke6 {[%emt 0:01:34]} 54. Rc6+ {[%emt 0:01:00]} Bd6 {[%emt 0:00:20]} 55. Rb6 {[%emt 0:01:29]} Rxa2 {[%emt 0:00:43]} 56. Rxb5 {[%emt 0:00:18]} Be7 {[%emt 0:00:47]} 57. Nf4+ {[%emt 0:00:20]} Kf7 {[%emt 0:00:37]} 58. Rb7 {[%emt 0:00:06]} Ke8 {[%emt 0:00:32]} 59. Nxg6 {[%emt 0:00:10]} Bd6 {[%emt 0:00:30]} 60. Rb5 {[%emt 0:00:23]} Rb2 {[%emt 0:00:23]} 61. Rd5 {[%emt 0:00:36]} Rxb3+ {[%emt 0:00:11]} 62. Kg2 {[%emt 0:00:04]} Bb8 {[%emt 0:00:31]} 63. Rxd4 {[%emt 0:00:10]} Rb2 {[%emt 0:00:02]} 64. Re4+ {[%emt 0:00:22]} Kf7 {[%emt 0:00:07]} 65. Nf4 {[%emt 0:00:09]} Ba7 {[%emt 0:00:50]} 66. Re2 {[%emt 0:00:25]} Rb5 {[%emt 0:00:04]} 67. Rd2 {[%emt 0:00:12]} Ra5 {[%emt 0:00:40]} 68. Rd5 {[%emt 0:00:53]} Rxd5 {[%emt 0:01:08]} 69. Nxd5 {[%emt 0:00:05]} Kg6 {[%emt 0:00:05]} 70. Nf4+ {[%emt 0:00:18]} Kh6 {[%emt 0:00:01]} 71. f3 {[%emt 0:00:24]} Bb8 {[%emt 0:00:01]} 72. Ne6 {[%emt 0:00:16]} Kg6 {[%emt 0:00:14]} 73. Nf4+ {[%emt 0:01:21]} Bxf4 {[%emt 0:00:55]} 74. gxf4 {[%emt 0:00:04]} Kf5 {[%emt 0:00:53]} 75. Kg3 {[%emt 0:00:04]} Ke6 {[%emt 0:00:59]} 76. Kf2 {[%emt 0:00:02]} Kf6 {[%emt 0:00:09]} 77. Ke2 {[%emt 0:00:09]} Ke6 {[%emt 0:00:52]} 78. Kd3 {[%emt 0:00:06]} Kd5 {[%emt 0:01:06]} 79. Ke3 {[%emt 0:00:07]} Ke6 {[%emt 0:00:34]} 80. Ke4 {[%emt 0:00:08]} Kf6 {[%emt 0:00:26]} 81. f5 {[%emt 0:00:04]} Kg7 {[%emt 0:00:03]} 82. Ke5 {[%emt 0:00:04]} Kf7 {[%emt 0:00:01]} 83. f6 {[%emt 0:00:14]} Ke8 {[%emt 0:00:30]} 84. Ke4 1-0

[Event "Magistral Ajedrez 2019"]
[Site "Zaragoza"]
[Date "2019.07.20"]
[Round "8.5"]
[White "Gomez Anadon, Daniel"]
[Black "Villuendas Valero, Adrian"]
[Result "1/2-1/2"]
[ECO "A04"]
[WhiteElo "2305"]
[BlackElo "2250"]
[Annotator "NA"]
[PlyCount "64"]
[EventDate "2019.07.15"]
[EventType "swiss"]
[EventCountry "ESP"]
[SourceTitle "playchess.com"]
[Source "ChessBase"]
[SourceQuality "1"]
[TimeControl "5400+30"]

1. Nf3 {[%emt 0:00:00]} c5 {[%emt 0:00:00]} 2. g3 {[%emt 0:00:53]} Nc6 {[%emt 0:01:15]} 3. Bg2 {[%emt 0:01:07]} g6 {[%emt 0:00:17]} 4. O-O {[%emt 0:01:57]} Bg7 {[%emt 0:00:11]} 5. e4 {[%emt 0:07:26]} d6 {[%emt 0:00:42]} 6. d3 {[%emt 0:05:46]} e5 {[%emt 0:01:51]} 7. c3 {[%emt 0:06:39]} Nge7 {[%emt 0:01:10]} 8. a3 {[%emt 0:00:06]} O-O {[%emt 0:01:24]} 9. b4 {[%emt 0:00:12]} h6 {[%emt 0:04:30]} 10. b5 {[%emt 0:06:46]} Na5 {[%emt 0:01:43]} 11. c4 {[%emt 0:00:19]} f5 {[%emt 0:11:16]} 12. Nfd2 {[%emt 0:00:34]} f4 {[%emt 0:01:43]} 13. Nc3 {[%emt 0:03:11]} g5 {[%emt 0:04:20]} 14. Bb2 {[%emt 0:15:34]} g4 {[%emt 0:07:31]} 15. f3 {[%emt 0:03:23]} h5 {[%emt 0:01:46]} 16. Nd5 {[%emt 0:02:12]} Ng6 {[%emt 0:02:38]} 17. Bc3 {[%emt 0:10:45]} b6 {[%emt 0:10:59]} 18. a4 {[%emt 0:01:31]} Qg5 {[%emt 0:06:07]} 19. Qe1 {[%emt 0:00:43]} h4 {[%emt 0:22:04]} 20. fxg4 {[%emt 0:06:31]} hxg3 {[%emt 0:01:59]} 21. h3 {[%emt 0:03:14]} Rf7 {[%emt 0:04:09]} 22. Bxa5 {[%emt 0:01:19]} bxa5 {[%emt 0:00:04]} 23. Nf3 {[%emt 0:00:14]} Qd8 {[%emt 0:00:51]} 24. Rb1 {[%emt 0:01:24]} Rb8 {[%emt 0:00:43]} 25. Rb2 {[%emt 0:00:42]} Bf8 {[%emt 0:03:09]} 26. Qd2 {[%emt 0:02:21]} Be6 {[%emt 0:02:47]} 27. Rc1 {[%emt 0:05:34]} Rh7 {[%emt 0:01:30]} 28. Kf1 {[%emt 0:00:55]} Kh8 {[%emt 0:01:12]} 29. Qe2 {[%emt 0:06:49]} Bh6 {[%emt 0:03:01]} 30. Ke1 {[%emt 0:00:40]} Bg5 {[%emt 0:02:37]} 31. Kd1 {[%emt 0:00:36]} Nh4 {[%emt 0:00:44]} 32. Nxh4 {[%emt 0:01:07]} Bxh4 {[%emt 0:00:29]} 1/2-1/2

[Event "Magistral Ajedrez 2019"]
[Site "Zaragoza"]
[Date "2019.07.21"]
[Round "9.1"]
[White "Villuendas Valero, Adrian"]
[Black "Romero Pallares, Daniel"]
[Result "1-0"]
[ECO "E61"]
[WhiteElo "2250"]
[BlackElo "2230"]
[Annotator "NA"]
[PlyCount "143"]
[EventDate "2019.07.15"]
[EventType "swiss"]
[EventCountry "ESP"]
[SourceTitle "playchess.com"]
[Source "ChessBase"]
[SourceQuality "1"]
[TimeControl "5400+30"]

1. d4 {[%emt 0:00:00]} Nf6 {[%emt 0:00:00]} 2. c4 {[%emt 0:00:00]} g6 {[%emt 0:00:00]} 3. Nc3 {[%emt 0:00:00]} Bg7 {[%emt 0:00:00]} 4. Nf3 {[%emt 0:00:05]} O-O {[%emt 0:00:10]} 5. Bg5 {[%emt 0:00:06]} c5 {[%emt 0:01:55]} 6. e3 {[%emt 0:01:28]} cxd4 {[%emt 0:00:36]} 7. exd4 {[%emt 0:00:12]} d5 {[%emt 0:01:42]} 8. Bxf6 {[%emt 0:09:35]} exf6 {[%emt 0:00:05]} 9. cxd5 {[%emt 0:02:56]} Nd7 {[%emt 0:02:20]} 10. Be2 {[%emt 0:17:54]} Nb6 {[%emt 0:04:57]} 11. Qb3 {[%emt 0:01:32]} Qd6 {[%emt 0:00:23]} 12. O-O {[%emt 0:02:14]} Bd7 {[%emt 0:02:59]} 13. Rfe1 {[%emt 0:02:00]} Rad8 {[%emt 0:01:43]} 14. a4 {[%emt 0:02:31]} a5 {[%emt 0:02:24]} 15. Ne4 {[%emt 0:17:08]} Qb4 {[%emt 0:04:47]} 16. Qxb4 {[%emt 0:03:27]} axb4 {[%emt 0:00:05]} 17. Nc5 {[%emt 0:00:57]} Bc8 {[%emt 0:02:04]} 18. a5 {[%emt 0:01:59]} Nxd5 {[%emt 0:00:19]} 19. h3 {[%emt 0:05:40]} Rfe8 {[%emt 0:05:17]} 20. Bc4 {[%emt 0:02:58]} Rxe1+ {[%emt 0:00:36]} 21. Rxe1 {[%emt 0:00:07]} Kf8 {[%emt 0:00:44]} 22. Nd3 {[%emt 0:07:48]} Bf5 {[%emt 0:08:15]} 23. Nc5 {[%emt 0:00:35]} Bc8 {[%emt 0:10:07]} 24. Nd3 {[%emt 0:03:30]} Bh6 {[%emt 0:03:10]} 25. Ra1 {[%emt 0:03:36]} Bf5 {[%emt 0:03:43]} 26. Nc5 {[%emt 0:01:02]} Bc8 {[%emt 0:00:54]} 27. Bxd5 {[%emt 0:01:41]} Rxd5 {[%emt 0:00:09]} 28. Ra4 {[%emt 0:00:06]} Bf4 {[%emt 0:05:52]} 29. Rxb4 {[%emt 0:00:11]} Bd6 {[%emt 0:01:58]} 30. Rc4 {[%emt 0:01:00]} Ke7 {[%emt 0:01:57]} 31. Kf1 {[%emt 0:04:50]} Be6 {[%emt 0:03:10]} 32. Rc3 {[%emt 0:05:03]} Bxc5 {[%emt 0:02:00]} 33. Rxc5 {[%emt 0:00:50]} Rd6 {[%emt 0:02:35]} 34. Rc7+ {[%emt 0:01:37]} Rd7 {[%emt 0:00:27]} 35. Rc5 {[%emt 0:00:42]} Rd6 {[%emt 0:00:13]} 36. Rc7+ {[%emt 0:01:47]} Rd7 {[%emt 0:00:00]} 37. Rxd7+ {[%emt 0:00:43]} Kxd7 {[%emt 0:00:05]} 38. Ke2 {[%emt 0:00:09]} Kc6 {[%emt 0:00:07]} 39. Nd2 {[%emt 0:00:28]} Bd5 {[%emt 0:00:21]} 40. g3 {[%emt 0:00:28]} Kb5 {[%emt 0:00:15]} 41. Kd3 {[%emt 0:00:07]} f5 {[%emt 0:00:39]} 42. Kc3 {[%emt 0:00:43]} Kxa5 {[%emt 0:00:24]} 43. Nc4+ {[%emt 0:00:13]} Kb5 {[%emt 0:01:25]} 44. Ne3 {[%emt 0:00:17]} Be4 {[%emt 0:00:25]} 45. f4 {[%emt 0:01:28]} Bf3 {[%emt 0:01:19]} 46. h4 {[%emt 0:00:30]} Be4 {[%emt 0:00:09]} 47. Kb3 {[%emt 0:00:18]} Bf3 {[%emt 0:00:20]} 48. Kc3 {[%emt 0:00:15]} Be4 {[%emt 0:00:02]} 49. Nc4 {[%emt 0:00:28]} Bd5 {[%emt 0:01:22]} 50. Ne5 {[%emt 0:00:40]} Be6 {[%emt 0:00:43]} 51. Nf3 {[%emt 0:01:00]} f6 {[%emt 0:03:50]} 52. Ne1 {[%emt 0:00:28]} Bd5 {[%emt 0:00:41]} 53. Nc2 {[%emt 0:00:13]} Be4 {[%emt 0:00:37]} 54. Ne3 {[%emt 0:00:05]} Bf3 {[%emt 0:00:23]} 55. d5 {[%emt 0:01:13]} Kc5 {[%emt 0:00:51]} 56. b4+ {[%emt 0:00:08]} Kb5 {[%emt 0:01:48]} 57. Kd4 {[%emt 0:00:19]} Kb6 {[%emt 0:03:38]} 58. Nc4+ {[%emt 0:00:09]} Kc7 {[%emt 0:00:20]} 59. Kc5 {[%emt 0:00:13]} Be2 {[%emt 0:00:48]} 60. Nb6 {[%emt 0:00:25]} Bf3 {[%emt 0:00:18]} 61. b5 {[%emt 0:00:48]} Bg2 {[%emt 0:01:30]} 62. d6+ {[%emt 0:00:48]} Kd8 {[%emt 0:00:05]} 63. Nd5 {[%emt 0:00:21]} Bxd5 {[%emt 0:00:16]} 64. Kxd5 {[%emt 0:00:04]} Kd7 {[%emt 0:00:05]} 65. Kc5 {[%emt 0:00:11]} h5 {[%emt 0:01:09]} 66. Kb6 {[%emt 0:00:20]} Kxd6 {[%emt 0:00:07]} 67. Kxb7 {[%emt 0:00:04]} Kd5 {[%emt 0:00:06]} 68. Kc7 {[%emt 0:00:27]} Ke4 {[%emt 0:00:04]} 69. b6 {[%emt 0:00:02]} Kf3 {[%emt 0:00:04]} 70. b7 {[%emt 0:00:08]} Kxg3 {[%emt 0:00:04]} 71. b8=Q {[%emt 0:00:08]} Kxh4 {[%emt 0:00:11]} 72. Qf8 {[%emt 0:01:13]} 1-0

[Event "Magistral Ajedrez 2019"]
[Site "Zaragoza"]
[Date "2019.07.21"]
[Round "9.2"]
[White "Randazzo, Adrian"]
[Black "Gomez Anadon, Daniel"]
[Result "1/2-1/2"]
[ECO "C42"]
[WhiteElo "2227"]
[BlackElo "2305"]
[Annotator "NA"]
[PlyCount "61"]
[EventDate "2019.07.15"]
[EventType "swiss"]
[EventCountry "ESP"]
[SourceTitle "playchess.com"]
[Source "ChessBase"]
[SourceQuality "1"]
[TimeControl "5400+30"]

1. e4 {[%emt 0:00:00]} e5 {[%emt 0:00:00]} 2. Nf3 {[%emt 0:00:00]} Nf6 {[%emt 0:00:00]} 3. Nxe5 {[%emt 0:00:00]} d6 {[%emt 0:00:00]} 4. Nf3 {[%emt 0:00:05]} Nxe4 {[%emt 0:00:00]} 5. Qe2 {[%emt 0:00:08]} Qe7 {[%emt 0:00:15]} 6. d3 {[%emt 0:00:12]} Nf6 {[%emt 0:00:14]} 7. Bg5 {[%emt 0:00:17]} Qxe2+ {[%emt 0:00:25]} 8. Bxe2 {[%emt 0:00:08]} Be7 {[%emt 0:00:10]} 9. Nc3 {[%emt 0:00:20]} c6 {[%emt 0:00:35]} 10. O-O {[%emt 0:00:49]} h6 {[%emt 0:00:23]} 11. Bd2 {[%emt 0:00:45]} O-O {[%emt 0:00:15]} 12. Rfe1 {[%emt 0:00:06]} d5 {[%emt 0:00:35]} 13. h3 {[%emt 0:00:26]} Bf5 {[%emt 0:01:08]} 14. Bf1 {[%emt 0:00:33]} Bd6 {[%emt 0:00:21]} 15. Ne2 {[%emt 0:00:44]} Nbd7 {[%emt 0:00:15]} 16. Bf4 {[%emt 0:00:14]} Bxf4 {[%emt 0:00:08]} 17. Nxf4 {[%emt 0:00:05]} Rfe8 {[%emt 0:00:18]} 18. Rxe8+ {[%emt 0:01:14]} Rxe8 {[%emt 0:00:07]} 19. Re1 {[%emt 0:00:05]} Rxe1 {[%emt 0:00:13]} 20. Nxe1 {[%emt 0:00:06]} Kf8 {[%emt 0:00:22]} 21. f3 {[%emt 0:00:38]} Ke7 {[%emt 0:00:18]} 22. Kf2 {[%emt 0:00:05]} Nc5 {[%emt 0:00:21]} 23. b3 {[%emt 0:00:17]} Ne6 {[%emt 0:00:18]} 24. Nxe6 {[%emt 0:00:06]} Kxe6 {[%emt 0:00:07]} 25. d4 {[%emt 0:00:14]} Ne8 {[%emt 0:00:27]} 26. Bd3 {[%emt 0:00:10]} Nd6 {[%emt 0:00:16]} 27. Ke3 {[%emt 0:00:19]} Bxd3 {[%emt 0:00:15]} 28. Kxd3 {[%emt 0:00:19]} Kf5 {[%emt 0:00:47]} 29. Ke3 {[%emt 0:00:21]} Ke6 {[%emt 0:00:08]} 30. Kd3 {[%emt 0:00:12]} Kf5 {[%emt 0:00:10]} 31. Ke3 {[%emt 0:00:07] Ke5 Ke4+} 1/2-1/2

[Event "Magistral Ajedrez 2019"]
[Site "Zaragoza"]
[Date "2019.07.21"]
[Round "9.3"]
[White "Chueca Forcen, Alberto"]
[Black "Llorente Zaro, Alfonso"]
[Result "1/2-1/2"]
[ECO "D00"]
[WhiteElo "2283"]
[BlackElo "2445"]
[Annotator "NA"]
[PlyCount "43"]
[EventDate "2019.07.15"]
[EventType "swiss"]
[EventCountry "ESP"]
[SourceTitle "playchess.com"]
[Source "ChessBase"]
[SourceQuality "1"]
[TimeControl "5400+30"]

1. d4 {[%emt 0:00:00]} d5 {[%emt 0:00:00]} 2. Bf4 {[%emt 0:00:00]} Nf6 {[%emt 0:00:00]} 3. e3 {[%emt 0:00:11]} e6 {[%emt 0:00:04]} 4. Nd2 {[%emt 0:00:20]} c5 {[%emt 0:00:18]} 5. c3 {[%emt 0:00:16]} Nc6 {[%emt 0:00:24]} 6. Ngf3 {[%emt 0:00:39]} Bd6 {[%emt 0:00:18]} 7. Bg3 {[%emt 0:00:20]} O-O {[%emt 0:00:28]} 8. Bd3 {[%emt 0:00:28]} Qe7 {[%emt 0:00:34]} 9. Ne5 {[%emt 0:00:42]} Nd7 {[%emt 0:01:01]} 10. Nxd7 {[%emt 0:00:33]} Qxd7 {[%emt 0:00:24]} 11. Bxd6 {[%emt 0:00:22]} Qxd6 {[%emt 0:00:09]} 12. dxc5 {[%emt 0:00:22]} Qxc5 {[%emt 0:00:09]} 13. Bxh7+ {[%emt 0:00:37]} Kxh7 {[%emt 0:00:12]} 14. Qh5+ {[%emt 0:00:06]} Kg8 {[%emt 0:00:07]} 15. Ne4 {[%emt 0:00:07]} g6 {[%emt 0:00:09]} 16. Qg5 {[%emt 0:00:17]} Qe7 {[%emt 0:00:08]} 17. Nf6+ {[%emt 0:00:07]} Kg7 {[%emt 0:00:06]} 18. Nh5+ {[%emt 0:00:06]} Kh7 {[%emt 0:01:32]} 19. Nf6+ {[%emt 0:00:12]} Kg7 {[%emt 0:00:05]} 20. Nh5+ {[%emt 0:00:06]} Kh7 {[%emt 0:00:07]} 21. Nf6+ {[%emt 0:00:05]} Kg7 {[%emt 0:00:05]} 22. Nh5+ {[%emt 0:00:06]} 1/2-1/2